{"text_format":"3","workbook":"xlsx","n_sheets":1,"sheets":["Sheet1"],"read":"whole","date_system":"1900"}

{"sheet":"Sheet1","index":0,"n_rows":65,"n_cols":20,"rows_kept":65,"merged":[[12,1,12,8],[14,6,14,8],[16,0,18,0],[21,0,23,0],[24,0,26,0],[24,1,26,8],[28,0,30,0],[33,0,35,0],[39,1,39,8],[41,6,41,8],[43,0,45,0],[48,0,50,0],[51,0,53,0],[51,1,53,8],[55,0,57,0],[61,1,61,6],[64,1,64,6]]}
["APC 2019 - JAKARTA- PLAYING SCHEDULE"]
[]
[]
[null,1,2,3,4,5,6,7,8]
[null,"SHANGHAI","HO CHI MINH","SEOUL","JAKARTA","SINGAPORE","MANILA","PHNOM PENH","BANGKOK"]
[]
["TEAM 1","Shanghai 1","Ho Chi Minh 1","Seoul 1","Jakarta 1","Singapore 1","Manila 1","Phnom Penh 1","Bangkok 1"]
[]
["TEAM 2","Shanghai 2","Ho Chi Minh 2","Seoul 2","Jakarta 2","Singapore 2","Manila 2","Phnom Penh 2","Bangkok 2"]
[]
[]
[]
["TIME","DAY 1",{"$nulls":8},"TABLE",1,2,3,4,5,6,7,8]
[]
[null,"TV TABLE",{"$nulls":4},"LOCATED AT FEZ KINARA UPSTAIRS",{"$nulls":3},"Shanghai 1",1,1,2,null,null,1,null,2,{"$f":"SUM(L15:S15)","v":7}]
[null,"TABLE 1","TABLE 2","TABLE 3","TABLE 4","TABLE 5","TABLE 6","TABLE 7","TABLE 8",null,"Ho Chi Minh 1",1,null,2,1,1,1,null,1,{"$f":"SUM(L16:S16)","v":7}]
["11.00 to 13.30","Phnom Penh 1","Shanghai 1","Ho Chi Minh 1","Shanghai 2","Bangkok 1","Bangkok 2","Ho Chi Minh 2","Singapore 2",null,"Seoul 1",1,null,null,1,2,1,1,1,7]
[null,"vs","vs","vs","vs","vs","vs","vs","vs",null,"Jakarta 1",1,1,2,1,null,1,null,1,7]
[null,"Seoul 1","Manila 1","Jakarta 1","Jakarta 2","Singapore 1","Phnom Penh 2","Seoul 2","Manila 2",null,"Singapore 1",1,null,1,null,1,null,2,2,7]
[{"$nulls":10},"Manila 1",1,2,null,null,1,2,1,null,7]
[null,"TABLE 1","TABLE 2","TABLE 3","TABLE 4","TABLE 5","TABLE 6","TABLE 7","TABLE 8",null,"Phnom Penh 1",1,1,1,null,null,1,2,1,7]
["13.40 to 16.10","Shanghai 2","Phnom Penh 1","Shanghai 1","Ho Chi Minh 1","Manila 1","Ho Chi Minh 2","Bangkok 2","Phnom Penh 2",null,"Bangkok 1",1,1,null,1,1,1,null,2,7]
[null,"vs","vs","vs","vs","vs","vs","vs","vs"]
[null,"Manila 2","Jakarta 1","Singapore 1","Bangkok 1","Seoul 1","Jakarta 2","Singapore 2","Seoul 2"]
["16.10 to 16.50","BREAK AND DINNER",{"$nulls":8},"Shanghai 2",1,1,1,2,1,null,1,null,{"$f":"SUM(L25:S25)","v":7}]
[{"$nulls":10},"Ho Chi Minh 2",1,1,1,null,1,2,1,null,7]
[{"$nulls":10},"Seoul 2",null,1,1,2,null,null,2,1,7]
[null,"TABLE 1","TABLE 2","TABLE 3","TABLE 4","TABLE 5","TABLE 6","TABLE 7","TABLE 8",null,"Jakarta 2",1,1,null,2,1,1,1,null,7]
["16.50 to 19.20","Ho Chi Minh 1","Shanghai 2","Ho Chi Minh 2","Singapore 2","Manila 2","Bangkok 1","Manila 1","Singapore 1",null,"Singapore 2",1,1,null,1,1,null,2,1,7]
[null,"vs","vs","vs","vs","vs","vs","vs","vs",null,"Manila 2",1,2,null,1,2,null,null,1,7]
[null,"Shanghai 1","Bangkok 2","Phnom Penh 2","Seoul 2","Jakarta 2","Seoul 1","Phnom Penh 1","Jakarta 1",null,"Phnom Penh 2",null,null,2,2,1,1,null,1,7]
[{"$nulls":10},"Bangkok 2",1,1,1,null,1,2,1,null,7]
[null,"TABLE 1","TABLE 2","TABLE 3","TABLE 4","TABLE 5","TABLE 6","TABLE 7","TABLE 8"]
["19.30 to 22.00","Bangkok 2","Ho Chi Minh 2","Ho Chi Minh 1","Shanghai 2","Singapore 2","Manila 1","Singapore 1","Bangkok 1",null,null,{"$f":"SUM(L15:L33)","v":14},{"$f":"SUM(M15:M33)","v":14},14,14,14,14,14,14]
[null,"vs","vs","vs","vs","vs","vs","vs","vs"]
[null,"Jakarta 2","Manila 2","Phnom Penh 1","Seoul 2","Phnom Penh 2","Jakarta 1","Seoul 1","Shanghai 1"]
[]
[]
[]
["TIME","DAY 2"]
[]
[{"$nulls":6},"LOCATED AT FEZ KINARA UPSTAIRS"]
[null,"TABLE 1","TABLE 2","TABLE 3","TABLE 4","TABLE 5","TABLE 6","TABLE 7","TABLE 8"]
["11.00 to 13.30","Ho Chi Minh 2","Bangkok 1","Shanghai 2","Jakarta 1","Bangkok 2","Shanghai 1","Jakarta 2","Ho Chi Minh 1"]
[null,"vs","vs","vs","vs","vs","vs","vs","vs"]
[null,"Singapore 2","Manila 1","Phnom Penh 2","Seoul 1","Manila 2","Phnom Penh 1","Seoul 2","Singapore 1"]
[]
[null,"TABLE 1","TABLE 2","TABLE 3","TABLE 4","TABLE 5","TABLE 6","TABLE 7","TABLE 8"]
["13.40 to 16.10","Bangkok 1","Singapore 2","Bangkok 2","Manila 2","Ho Chi Minh 2","Ho Chi Minh 1","Singapore 1","Shanghai 1"]
[null,"vs","vs","vs","vs","vs","vs","vs","vs"]
[null,"Jakarta 1","Jakarta 2","Seoul 2","Phnom Penh 2","Shanghai 2","Manila 1","Phnom Penh 1","Seoul 1"]
["16.10 to 16.50","BREAK AND DINNER"]
[]
[]
[null,"TABLE 1","TABLE 2","TABLE 3","TABLE 4","TABLE 5","TABLE 6","TABLE 7","TABLE 8"]
["16.50 to 19.20","Singapore 1","Manila 2","Shanghai 1","Phnom Penh 2","Ho Chi Minh 1","Ho Chi Minh 2","Shanghai 2","Bangkok 1"]
[null,"vs","vs","vs","vs","vs","vs","vs","vs"]
[null,"Manila 1","Seoul 2","Jakarta 1","Jakarta 2","Seoul 1","Bangkok 2","Singapore 2","Phnom Penh 1"]
[]
[]
[]
["19.20 to 20.00","SCORE VERIFICATION"]
[]
[]
["20.00 to 20.30","ACKNOWLEDGEMENTS & AWARDS PRESENTATION"]